lending/lending_fUSD_20241025
["ID","MTS","AMOUNT","RATE_DAILY","PERIOD"]
[340831203,1729894238525,-500.0,0.00060389,120]
[340831204,1729894238534,-500.0,0.00060389,120]
[340831205,1729894238544,-321.14692041,0.00060389,120]
[340831206,1729894238553,-500.0,0.00060389,120]
[340831207,1729894238563,-340.78547134,0.00060389,120]
[340831208,1729894238573,-500.0,0.00060389,120]
[340831209,1729894238583,-500.0,0.00060389,120]
[340831210,1729894238592,-500.0,0.00060389,120]
[340831211,1729894238603,-500.0,0.00060389,120]
[340831212,1729894238612,-500.0,0.00060389,120]
[340831213,1729894238623,-500.0,0.00060389,120]
[340831214,1729894238633,-500.0,0.00060389,120]
[340831215,1729894238643,-500.0,0.00060389,120]
[340831216,1729894238652,-500.0,0.00060389,120]
[340831217,1729894238661,-500.0,0.00060389,120]
[340831218,1729894238672,-500.0,0.00060389,120]
[340831219,1729894238682,-500.0,0.00060389,120]
[340831220,1729894238690,-500.0,0.00060389,120]
[340831221,1729894238699,-500.0,0.00060389,120]
[340831222,1729894238710,-500.0,0.00060389,120]
[340831223,1729894238721,-500.0,0.00060389,120]
[340831224,1729894238732,-500.0,0.00060389,120]
[340831225,1729894238742,-500.0,0.00060389,120]
[340831226,1729894238752,-500.0,0.00060389,120]
[340831227,1729894238762,-500.0,0.00060389,120]
[340831228,1729894238771,-4942.55,0.00060389,120]
[340831229,1729894238782,-500.0,0.00060389,120]
[340831230,1729894238792,-581.14,0.00060389,120]
[340831231,1729894238802,-482.52141491,0.00060389,120]
[340831232,1729894238811,-896.23,0.00060389,120]
[340831233,1729894238820,-500.0,0.00060389,120]
[340831234,1729894238828,-204.41325327,0.00060389,120]
[340831235,1729894238838,-533.19804923,0.00060389,120]
[340831236,1729894238847,-500.0,0.00060389,21]
[340831237,1729894238856,-500.0,0.00060389,120]
[340831238,1729894238866,-218.81540517,0.00060389,120]
[340831239,1729894238875,-500.0,0.00060389,120]
[340831240,1729894238884,-500.0,0.00060389,120]
[340831241,1729894238893,-225.96263111,0.00060389,120]
[340831242,1729894238903,-500.0,0.00060389,120]
[340831243,1729894238914,-500.0,0.00060389,120]
[340831244,1729894238926,-500.0,0.00060389,120]
[340831245,1729894238936,-500.0,0.00060389,120]
[340831246,1729894238946,-500.0,0.00060389,120]
[340831247,1729894238955,-500.0,0.00060389,120]
[340831248,1729894238964,-500.0,0.00060389,120]
[340831249,1729894238974,-1000.0,0.00060389,120]
[340831250,1729894238983,-500.0,0.00060389,120]
[340831251,1729894238992,-500.0,0.00060389,120]
[340831252,1729894239001,-500.0,0.00060389,4]
[340831253,1729894239010,-500.0,0.00060389,120]
[340831254,1729894239019,-500.0,0.00060389,120]
[340831255,1729894239028,-500.0,0.00060389,120]
[340831256,1729894239037,-500.0,0.00060389,120]
[340831257,1729894239046,-866.98,0.00060389,120]
[340831258,1729894239055,-500.0,0.00060389,120]
[340831259,1729894239065,-296.2059034,0.00060389,2]
[340831260,1729894239074,-952.82,0.00060389,120]
[340831261,1729894239083,-500.0,0.00060389,120]
[340831262,1729894239092,-7500.0,0.00060389,120]
[340831263,1729894239101,-500.0,0.00060389,120]
[340831264,1729894239111,-500.0,0.00060389,120]
[340831265,1729894239120,-411.95954132,0.00060389,120]
[340831266,1729894239130,-496.91018,0.00060389,120]
[340831267,1729894239139,-500.0,0.00060389,120]
[340831268,1729894239150,-557.99928915,0.00060389,120]
[340831269,1729894239159,-124486.13564563,0.0006039,2]
[340831270,1729894239168,-460.19722299,0.00060404,28]
[340831271,1729894239179,-500.0,0.00060504,120]
[340831272,1729894239189,-500.0,0.0006053,120]
[340831273,1729894239199,-500.0,0.00060702,120]
[340831274,1729894239208,-150.0,0.00060727,30]
[340831275,1729894239219,-150.0,0.00060733,30]
[340831276,1729894239229,-150.0,0.00060739,30]
[340831277,1729894239238,-4198.17869626,0.00060739,14]
[340831278,1729894239248,-150.0,0.00060741,30]
[340831279,1729894239258,-150.0,0.00060749,30]
[340831280,1729894239269,-150.0,0.00060749,30]
[340831281,1729894239279,-186.53860653,0.00060774,30]
[340831282,1729894239289,-150.0,0.00060784,30]
[340831283,1729894239298,-150.0,0.000608,30]
[340831284,1729894239307,-500.0,0.00060804,120]
[340831285,1729894239316,-500.0,0.00060808,120]
[340831286,1729894239326,-150.0,0.00060811,30]
[340831287,1729894239336,-150.0,0.00060816,30]
[340831288,1729894239345,-217.88926841,0.00060817,30]
[340831289,1729894239355,-150.0,0.0006084,30]
[340831290,1729894239364,-150.0,0.0006085,30]
[340831291,1729894239373,-298.965,0.00060854,30]
[340831292,1729894239382,-150.0,0.00060855,30]
[340831293,1729894239391,-150.0,0.00060856,30]
[340831294,1729894239406,-150.0,0.00060875,30]
[340831295,1729894239415,-150.0,0.00060882,30]
[340831296,1729894239424,-150.0,0.00060884,30]
[340831297,1729894239434,-8396.35739252,0.0006089,14]
[340831298,1729894239445,-3863.1816,0.00060899,2]
[340831299,1729894239454,-10000.0,0.000609,120]
[340831300,1729894239463,-167.21705786,0.000609,83]
[340831301,1729894239473,-300.0,0.000609,120]
[340831302,1729894239482,-150.0,0.000609,120]
[340831303,1729894239491,-597.00000254,0.000609,2]
[340831304,1729894239500,-179.54590108,0.000609,2]
[340831305,1729894239510,-637.54791413,0.000609,2]
[340831306,1729894239519,-1629.62962964,0.000609,2]
[340831307,1729894239528,-150.0,0.00060906,30]
[340831308,1729894239537,-150.0,0.00060914,30]
[340831309,1729894239546,-150.0,0.00060917,30]
[340831310,1729894239555,-150.0,0.00060934,30]
[340831311,1729894239566,-1062.68,0.00060936,2]
[340831312,1729894239575,-150.0,0.00060951,30]
[340831313,1729894239585,-150.0,0.00060966,30]
[340831314,1729894239595,-4198.17869626,0.00060969,14]
[340831315,1729894239604,-500.0,0.00060973,14]
[340831316,1729894239614,-500.0,0.00060973,15]
[340831317,1729894239623,-347.0791118,0.00060973,14]
[340831318,1729894239633,-500.0,0.00060973,2]
[340831319,1729894239642,-500.0,0.00060973,15]
[340831320,1729894239652,-150.0,0.00060975,30]
[340831321,1729894239661,-4198.17869626,0.00060978,14]
[340831322,1729894239671,-150.0,0.00060978,30]
[340831323,1729894239680,-952.82,0.00060978,120]
[340831326,1729894239691,-16792.714785,0.00060978,14]
[340831328,1729894239700,-37783.6082663,0.00060979,14]
[340831329,1729894239709,-196.07496729,0.00060979,7]
[340831330,1729894239821,-556.36980678,0.00060979,7]
[340831331,1729894239831,-153.4,0.00060979,120]
[340831332,1729894239840,-151.0,0.00060979,120]
[340831333,1729894239849,-151.0,0.00060979,120]
[340831334,1729894239858,-59.97892093,0.00060979,120]
[340831335,1729894239870,-91.02107907,0.00060979,120]
[340831336,1729894239879,-226.891686,0.00060979,120]
[340831337,1729894239890,-226.891686,0.00060979,120]
[340831338,1729894239899,-232.541778,0.00060979,120]
[340831339,1729894239909,-151.0,0.00060979,120]
[340831340,1729894239918,-232.541778,0.00060979,120]
[340831341,1729894239927,-151.0,0.00060979,120]
[340831342,1729894239936,-151.0,0.00060979,120]
[340831343,1729894239945,-151.0,0.00060979,120]
[340831344,1729894239954,-151.0,0.00060979,120]
[340831345,1729894239963,-151.0,0.00060979,120]
[340831346,1729894239972,-151.0,0.00060979,120]
[340831347,1729894239981,-151.0,0.00060979,120]
[340831348,1729894239990,-151.0,0.00060979,120]
[340831349,1729894239999,-224.051724,0.00060979,7]
[340831350,1729894240008,-151.0,0.00060979,120]
[340831351,1729894240018,-151.0,0.00060979,120]
[340831352,1729894240029,-222.224757,0.00060979,120]
[340831353,1729894240039,-151.0,0.00060979,120]
[340831354,1729894240049,-222.224757,0.00060979,120]
[340831355,1729894240059,-151.0,0.00060979,120]
[340831356,1729894240068,-151.0,0.00060979,120]
[340831357,1729894240077,-151.0,0.00060979,120]
[340831358,1729894240087,-628.427735,0.00060979,120]
[340831359,1729894240096,-151.0,0.00060979,120]
[340831360,1729894240105,-628.427735,0.00060979,120]
[340831361,1729894240114,-151.0,0.00060979,120]
[340831362,1729894240123,-151.0,0.00060979,120]
[340831363,1729894240133,-151.0,0.00060979,120]
[340831364,1729894240143,-151.0,0.00060979,120]
[340831365,1729894240152,-151.0,0.00060979,120]
[340831366,1729894240162,-151.0,0.00060979,120]
[340831367,1729894240172,-228.164022,0.00060979,120]
[340831368,1729894240181,-228.164022,0.00060979,120]
[340831369,1729894240192,-667.14206,0.00060979,120]
[340831370,1729894240201,-667.14206,0.00060979,120]
[340831371,1729894240210,-714.602028,0.00060979,120]
[340831372,1729894240220,-151.0,0.00060979,120]
[340831373,1729894240229,-714.602028,0.00060979,120]
[340831374,1729894240239,-151.0,0.00060979,120]
[340831375,1729894240249,-151.0,0.00060979,120]
[340831376,1729894240258,-151.0,0.00060979,120]
[340831377,1729894240267,-151.0,0.00060979,120]
[340831378,1729894240277,-151.0,0.00060979,120]
[340831379,1729894240286,-151.0,0.00060979,120]
[340831380,1729894240295,-328.694448,0.00060979,120]
[340831381,1729894240305,-328.694448,0.00060979,120]
[340831382,1729894240314,-328.694448,0.00060979,120]
[340831383,1729894240323,-328.694448,0.00060979,120]
[340831384,1729894240332,-228.342065,0.00060979,120]
[340831385,1729894240341,-151.0,0.00060979,120]
[340831386,1729894240350,-228.342065,0.00060979,120]
[340831387,1729894240359,-151.0,0.00060979,120]
[340831388,1729894240368,-151.0,0.00060979,120]
[340831389,1729894240377,-151.0,0.00060979,120]
[340831390,1729894240387,-151.0,0.00060979,120]
[340831391,1729894240397,-151.0,0.00060979,120]
[340831392,1729894240407,-126.90652343,0.00060979,120]
[340831393,1729894240418,-24.09347657,0.00060979,120]
[340831394,1729894240427,-151.0,0.00060979,120]
[340831395,1729894240436,-151.0,0.00060979,120]
[340831396,1729894240446,-151.0,0.00060979,120]
[340831397,1729894240455,-151.0,0.00060979,120]
[340831398,1729894240464,-151.0,0.00060979,120]
[340831399,1729894240475,-151.0,0.00060979,120]
[340831400,1729894240484,-151.0,0.00060979,120]
[340831401,1729894240493,-2464.49045173,0.00060979,14]
[340831404,1729894242806,-23.85626521,0.00060389,120]
[340831405,1729894242817,-420.27045549,0.00060389,120]
[340831406,1729894242826,-500.0,0.00060389,120]
[340831407,1729894242836,-5136.51325796,0.00060979,14]
[340831462,1729894245786,-6071.71325932,0.00060979,14]
[340831463,1729895137138,-969.89233964,0.00024,2]
[340831464,1729895137157,-33805.63091521,0.00025,2]
[340831465,1729895140947,2532.39296991,0.0002,2]
[340831467,1729895253186,-485.09631659,0.00024873,2]
[340831468,1729895281383,1077.12703009,0.00015,2]
[340831469,1729895281410,535431.86825643,0.00015,2]
[340831470,1729895348209,-265.74777893,0.0002301,2]
[340831471,1729895348229,-564.17105022,0.0002322,2]
[340831472,1729895348253,-431.992195,0.00024873,2]
[340831473,1729895348273,-795.0,0.00024999,2]
[340831474,1729895348295,-55756.98992013,0.00025,2]
[340831475,1729895348315,-603.99999922,0.00025,2]
[340831476,1729895348337,-3080.12215585,0.00025,7]
[340831477,1729895348357,-155.71755017,0.0003,2]
[340831478,1729895348376,-4075.12348994,0.0003409,3]
[340831479,1729895348395,-656.61,0.00042,2]
[340831480,1729895348414,-27386.95054546,0.00042,2]
[340831481,1729895348433,-321.60005576,0.00042947,2]
[340831482,1729895348453,-491.72471688,0.00043046,31]
[340831483,1729895348473,-500.0,0.00043046,31]
[340831484,1729895348493,-500.0,0.00043046,31]
[340831485,1729895348513,-500.0,0.00043046,31]
[340831486,1729895348534,-500.0,0.00043046,31]
[340831487,1729895348554,-500.0,0.00043046,31]
[340831488,1729895348574,-623.47054288,0.00043046,31]
[340831489,1729895348593,-500.0,0.00043046,31]
[340831490,1729895348614,-500.0,0.00043046,31]
[340831491,1729895348632,-353.68668098,0.00043046,31]
[340831492,1729895348652,-500.0,0.00043046,31]
[340831493,1729895348672,-500.0,0.00043046,31]
[340831494,1729895348692,-500.0,0.00043046,31]
[340831495,1729895348713,-500.0,0.00043046,31]
[340831496,1729895348733,-500.0,0.00043046,31]
[340831497,1729895348753,-500.0,0.00043046,31]
[340831498,1729895348776,-500.0,0.00043046,31]
[340831499,1729895348796,-638.46981761,0.00043046,31]
[340831500,1729895348815,-151.0,0.00043047,14]
[340831501,1729895348834,-151.0,0.00043047,14]
[340831502,1729895348853,-5000.0,0.00043047,14]
[340831503,1729895348874,-5000.0,0.00043047,14]
[340831504,1729895348894,-5000.0,0.00043047,14]
[340831505,1729895348913,-5000.0,0.00043047,14]
[340831506,1729895348933,-1485.25510097,0.00043047,14]
[340831507,1729895351143,-3514.74489903,0.00043047,14]
[340831508,1729895351164,-5000.0,0.00043047,14]
[340831509,1729895351184,-161.290749,0.00043047,14]
[340831510,1729895351205,-5000.0,0.00043047,14]
[340831511,1729895351229,-5000.0,0.00043047,14]
[340831512,1729895351249,-5000.0,0.00043047,14]
[340831513,1729895351272,-2833.55529197,0.00043047,14]
[340831514,1729895358133,-1026.63802195,0.00024999,2]
[340831515,1729895358155,-2166.44470803,0.00043047,14]
[340831516,1729895358175,-5000.0,0.00043047,14]
[340831517,1729895358195,-5000.0,0.00043047,14]
[340831518,1729895358215,-151.0,0.00043047,14]
[340831519,1729895358235,-5000.0,0.00043047,14]
[340831520,1729895358256,-219.302518,0.00043047,14]
[340831521,1729895358276,-5000.0,0.00043047,14]
[340831522,1729895358298,-5000.0,0.00043047,14]
[340831523,1729895358317,-5000.0,0.00043047,14]
[340831524,1729895358337,-1714.63123202,0.00043047,14]
[340831525,1729895360145,-3285.36876798,0.00043047,14]
[340831526,1729895360165,-219.302518,0.00043047,14]
[340831527,1729895360184,-151.0,0.00043047,14]
[340831528,1729895360203,-151.0,0.00043047,7]
[340831529,1729895360223,-630.062925,0.00043047,14]
[340831530,1729895360244,-630.062925,0.00043047,14]
[340831531,1729895360268,-4353.42,0.00043047,2]
[340831532,1729895360291,-500.0,0.000431,10]
[340831533,1729895360313,-694.51094639,0.0004447,10]
[340831534,1729895360333,-32332.01553516,0.00044776,21]
[340831535,1729895360358,-209244.44962532,0.00044776,21]
[340831536,1729895360383,-321.60005566,0.00044776,2]
[340831537,1729895360403,-250.0,0.00045187,120]
[340831538,1729895360425,-9900.13870149,0.000456,2]
[340831539,1729895362091,-2584.8401946,0.000456,2]
[340831540,1729895369159,-460.19722299,0.00042947,28]
[340831541,1729895369182,-11415.02110391,0.000456,2]
[340831542,1729895369202,-460.19722298,0.00046069,28]
[340831543,1729895369223,-321.60005566,0.00046606,2]
[340831544,1729895369244,-152.06,0.00046683,30]
[340831545,1729895369263,-5112.05,0.00046683,2]
[340831546,1729895369283,-170.091,0.00046683,2]
[340831547,1729895369303,-170.091,0.00046683,2]
[340831548,1729895369322,-170.091,0.00046683,2]
[340831549,1729895369341,-170.091,0.00046683,2]
[340831550,1729895369360,-170.091,0.00046683,2]
[340831551,1729895369379,-180.05,0.00047628,2]
[340831552,1729895369398,-321.60005566,0.00048435,2]
[340831553,1729895369416,-4778.05781165,0.00049,2]
[340831554,1729895369435,-249.99999801,0.0005,2]
[340831555,1729895369456,-321.60005566,0.00050265,2]
[340831556,1729895369475,-321.60005566,0.00052094,2]
[340831557,1729895369494,-2948.56,0.00053891,2]
[340831558,1729895369512,-321.60005566,0.00053924,2]
[340831559,1729895369533,-501.043865,0.000547,99]
[340831560,1729895371563,565.584961,0.00043047,14]
[340831561,1729895371864,565.584961,0.00043047,14]
[340831562,1729895372194,565.584961,0.00044776,14]
[340831563,1729895372510,565.584961,0.00044776,14]
[340831564,1729895373397,460.19722298,0.0004919,28]
[340831565,1729895374723,565.584961,0.00043047,14]
[340831566,1729895375109,565.584961,0.00043047,14]
[340831567,1729895375822,565.584961,0.00044776,14]
[340831568,1729895376115,565.584961,0.00044776,14]
[340831569,1729895378393,460.19722298,0.00052312,28]
[340831574,1729895402018,450.0,0.00043046,4]
[340831575,1729895408771,151.0,0.00043047,14]
[340831576,1729895409174,154.834734,0.00043047,14]
[340831577,1729895414412,170.0,0.00043037,2]
[340831592,1729895431856,-7523.82487558,0.00043047,2]
[340831594,1729895431867,-401.08174628,0.00043047,2]
[340831596,1729895431878,-24075.44132771,0.00043047,2]
[340831598,1729895431889,-1103.55713475,0.00043047,2]
[340831601,1729895431900,-608.34396347,0.00043047,2]
[340831604,1729895431956,-420.46255028,0.00043047,2]
[340831605,1729895431967,-4736.81216735,0.00043047,2]
[340831606,1729895431977,-1932.17575356,0.00043047,2]
[340831607,1729895431988,-563.10986677,0.00043047,2]
[340831608,1729895431999,-1648.45779949,0.00043047,2]
[340831609,1729895432010,-812.39353337,0.00043047,2]
[340831610,1729895432038,-761.33042846,0.00043047,2]
[340831611,1729895432123,-795.0,0.00043047,2]
[340831615,1729895436323,218.26090563,0.00042947,15]
[340831617,1729895438023,-119373.57145713,0.00043047,2]
[340831618,1729895438032,-1210.0,0.00043047,2]
[340831619,1729895438042,-3667.21517956,0.00043047,2]
[340831620,1729895438051,-342.18145273,0.00043047,2]
[340831621,1729895438060,-2953.4346896,0.00043047,2]
[340831622,1729895438070,-1494.02407496,0.00043047,2]
[340831623,1729895438080,-7249.66230663,0.00043047,2]
[340831624,1729895438089,-1011.45747998,0.00043047,2]
[340831625,1729895438098,-5093.79920842,0.00043047,2]
[340831626,1729895438108,-2685.09505567,0.00043047,2]
[340831627,1729895438117,-2411.83305124,0.00043047,2]
[340831628,1729895438126,-2631.3246496,0.00043047,2]
[340831629,1729895438136,-135041.35968876,0.00043047,2]
[340831630,1729895438145,-3190.61747652,0.00043047,2]
[340831631,1729895438155,-1457.46977148,0.00043047,2]
[340831632,1729895438164,-22415.70781664,0.00043047,2]
[340831633,1729895438177,-7585.98719269,0.00043047,2]
[340831634,1729895438189,-1050.08119383,0.00043047,2]
[340831635,1729895438201,-5867.55135545,0.00043047,2]
[340831636,1729895438213,-854.84589473,0.00043047,2]
[340831637,1729895438225,-187.59189902,0.00043047,2]
[340831638,1729895438237,-1288.74930553,0.00043047,2]
[340831639,1729895438249,-4857.16862447,0.00043047,2]
[340831640,1729895438261,-291.71568766,0.00043047,2]
[340831641,1729895438272,-3944.92956042,0.00043047,2]
[340831642,1729895438284,-22374.20153047,0.00043047,2]
[340831643,1729895438296,-12615.99700335,0.00043047,2]
[340831644,1729895438307,-1888.37386595,0.00043047,2]
[340831645,1729895438319,-180.90031373,0.00043047,2]
[340831646,1729895438333,-5489.08548403,0.00043047,2]
[340831647,1729895438344,-643.0,0.00043047,2]
[340831648,1729895438356,-953.82088566,0.00043047,2]
[340831649,1729895438367,-9424.81459886,0.00043047,2]
[340831650,1729895438379,-282.37804821,0.00043047,2]
[340831652,1729895438392,-8012.70781239,0.00043047,2]
[340831654,1729895438404,-1372.3284621,0.00043047,2]
[340831656,1729895438415,-1973.23,0.00043047,2]
[340831658,1729895438426,-2470.77,0.00055231,2]
[340831659,1729895438438,-460.19722298,0.00055433,28]
[340831661,1729895438450,-159.66,0.00056363,2]
[340831663,1729895438461,-157.0,0.00056468,2]
[340831665,1729895438472,-2215.0,0.000566,120]
[340831667,1729895438484,-180.28,0.00057271,2]
[340831669,1729895438497,-7500.0,0.00057534,120]
[340831671,1729895438508,-979.0,0.00057623,2]
[340831673,1729895438519,-190.0,0.00058,120]
[340831674,1729895438531,-150.99,0.00058,2]
[340831676,1729895438542,-991.15,0.00058,2]
[340831677,1729895438553,-250.0,0.00058138,120]
[340831679,1729895438563,-632.75,0.00058138,2]
[340831681,1729895438575,-22844.4,0.00058336,30]
[340831683,1729895438587,-179.61,0.00058336,120]
[340831685,1729895438597,-1959.64,0.00058336,2]
[340831687,1729895438608,-250.0,0.00058368,120]
[340831689,1729895438619,-163.54,0.00058375,2]
[340831691,1729895438630,-1852.42,0.00058425,2]
[340831693,1729895438641,-460.19722298,0.00058555,28]
[340831695,1729895438652,-151.06,0.00058684,2]
[340831696,1729895438663,-150.11,0.00059243,120]
[340831698,1729895438674,-160.0,0.00059351,120]
[340831701,1729895438687,-581.14,0.00059452,120]
[340831702,1729895438699,-1061.87,0.00059452,120]
[340831704,1729895438711,-500.0,0.00059452,120]
[340831706,1729895438723,-500.0,0.00059452,120]
[340831708,1729895438734,-500.0,0.00059452,120]
[340831710,1729895438744,-533.19804923,0.00059452,120]
[340831712,1729895438754,-500.0,0.00059452,120]
[340831714,1729895438764,-500.0,0.00059452,120]
[340831716,1729895438774,-500.0,0.00059452,120]
[340831717,1729895438784,-500.0,0.00059452,120]
[340831720,1729895438795,-500.0,0.00059452,120]
[340831722,1729895438806,-500.0,0.00059452,120]
[340831724,1729895438819,-500.0,0.00059452,120]
[340831726,1729895438832,-219.08195481,0.00059452,120]
[340831727,1729895438843,-500.0,0.00059452,120]
[340831729,1729895438852,-500.0,0.00059452,120]
[340831731,1729895438863,-1089.61,0.00059452,120]
[340831733,1729895438875,-1089.61,0.00059452,120]
[340831735,1729895438886,-1027.46,0.00059534,30]
[340831737,1729895438897,-153.289887,0.00059538,120]
[340831739,1729895438908,-151.0,0.00059538,120]
[340831741,1729895438920,-151.0,0.00059538,120]
[340831743,1729895438930,-219.302518,0.00059538,120]
[340831745,1729895438940,-219.302518,0.00059538,120]
[340831747,1729895438950,-151.0,0.00059538,120]
[340831749,1729895438960,-151.0,0.00059538,7]
[340831751,1729895438970,-630.062925,0.00059538,120]
[340831752,1729895438981,-630.062925,0.00059538,120]
[340831754,1729895438991,-2000.0,0.00059609,2]
[340831756,1729895439002,-2000.0,0.00059609,2]
[340831758,1729895439012,-2000.0,0.00059609,2]
[340831760,1729895439022,-2000.0,0.00059609,2]
[340831762,1729895439035,-2000.0,0.00059609,2]
[340831764,1729895439045,-1782.0,0.00059609,2]
[340831766,1729895439057,-153.374372,0.00059609,120]
[340831768,1729895439068,-151.0,0.00059609,120]
[340831770,1729895439079,-151.0,0.00059609,120]
[340831772,1729895439090,-151.0,0.00059609,120]
[340831774,1729895439101,-151.0,0.00059609,120]
[340831776,1729895439111,-151.0,0.00059609,120]
[340831778,1729895439122,-565.584961,0.00059609,120]
[340831780,1729895439133,-565.584961,0.00059609,120]
[340831782,1729895439144,-151.0,0.00059609,120]
[340831784,1729895439154,-151.0,0.00059609,120]
[340831786,1729895439165,-151.0,0.00059609,120]
[340831788,1729895439176,-151.0,0.00059609,120]
[340831790,1729895439186,-151.0,0.00059609,120]
[340831792,1729895439197,-872.0,0.00059629,120]
[340831794,1729895439207,-199.59,0.00059655,120]
[340831796,1729895439218,-419.96,0.0005967,2]
[340831798,1729895439229,-24792.0,0.00059766,30]
[340831800,1729895439240,-200.0,0.000598,21]
[340831802,1729895439250,-979.0,0.00059887,2]
[340831803,1729895439261,-500.0,0.000599,21]
[340831805,1729895439272,-212.42353397,0.000599,120]
[340831807,1729895439283,-500.0,0.00059968,2]
[340831809,1729895439293,-347.0791118,0.00059968,14]
[340831811,1729895439304,-500.0,0.00059973,15]
[340831812,1729895439315,-153.7,0.0005998,120]
[340831813,1729895439330,-851.8042737,0.0005998,7]
[340831814,1729895439340,-481.33098043,0.00059989,31]
[340831815,1729895439351,-171.21101369,0.00059989,120]
[340831816,1729895439363,-113818.611918,0.0005999,14]
[340831817,1729895439374,-47424.4216325,0.0005999,14]
[340831818,1729895439386,-14694.62552,0.0005999,12]
[340831819,1729895439397,-565.584961,0.0005999,120]
[340831820,1729895439409,-565.584961,0.0005999,120]
[340831821,1729895439420,-151.0,0.0005999,120]
[340831822,1729895439431,-151.0,0.0005999,120]
[340831823,1729895439441,-151.0,0.0005999,120]
[340831824,1729895439452,-151.0,0.0005999,120]
[340831825,1729895439464,-151.0,0.0005999,120]
[340831826,1729895439476,-1061.87,0.00059999,120]
[340831827,1729895439487,-500.0,0.00059999,120]
[340831828,1729895439498,-500.0,0.00059999,120]
[340831829,1729895439510,-500.0,0.00059999,120]
[340831830,1729895439521,-500.0,0.00059999,120]
[340831831,1729895439672,-500.0,0.00059999,120]
[340831832,1729895439682,-500.0,0.00059999,120]
[340831833,1729895439692,-500.0,0.00059999,120]
[340831834,1729895439702,-500.0,0.00059999,120]
[340831835,1729895439712,-7500.0,0.00059999,120]
[340831836,1729895439721,-50000.0,0.0006,60]
[340831837,1729895439731,-216.52928196,0.0006,120]
[340831838,1729895439740,-15362.0,0.0006,30]
[340831839,1729895439749,-20058.15016862,0.0006,3]
[340831840,1729895439759,-12499.98,0.0006,120]
[340831841,1729895439769,-892.33,0.0006,120]
[340831842,1729895439779,-7897.26,0.0006,120]
[340831843,1729895439789,-1241.48,0.0006,120]
[340831845,1729895439799,-5785.58,0.0006,120]
[340831847,1729895439809,-30711.8314309,0.0006,2]
[340831848,1729895439819,-151.0,0.0006,120]
[340831849,1729895439829,-151.0,0.0006,120]
[340831850,1729895439839,-151.0,0.0006,120]
[340831851,1729895439848,-27228.81076586,0.0006,30]
[340831853,1729895439858,-500.68536412,0.0006,120]
[340831854,1729895439867,-151.0,0.0006,120]
[340831855,1729895439876,-151.0,0.0006,120]
[340831856,1729895439885,-219.302518,0.0006,120]
[340831857,1729895439895,-151.0,0.0006,120]
[340831858,1729895439905,-219.302518,0.0006,120]
[340831859,1729895439913,-151.0,0.0006,120]
[340831860,1729895439922,-219.302518,0.0006,120]
[340831861,1729895439931,-151.0,0.0006,120]
[340831862,1729895439941,-219.302518,0.0006,120]
[340831863,1729895439950,-219.302518,0.0006,120]
[340831864,1729895439960,-219.302518,0.0006,120]
[340831865,1729895439969,-151.0,0.0006,120]
[340831866,1729895439978,-151.0,0.0006,120]
[340831867,1729895439988,-151.0,0.0006,120]
[340831868,1729895439997,-151.0,0.0006,7]
[340831869,1729895440007,-234.287018,0.0006,7]
[340831870,1729895440017,-630.062925,0.0006,120]
[340831871,1729895440026,-630.062925,0.0006,120]